bitfinex-derivatives/quotes_SOLF0:USTF0_20260215
["timestamp","ask_amount","ask_price","bid_price","bid_amount"]
[1771167700016,10.2994,87.432,87.38,7.59040738]
[1771167700420,45.06935993,87.476,87.38,7.59040738]
[1771167700717,34.41,87.476,87.399,7.61048319]
[1771167700912,10.296,87.461,87.399,7.61048319]
[1771167701313,91.32,87.49,87.399,7.61048319]
[1771167701514,34.41,87.489,87.399,7.61048319]
[1771167701714,10.65935993,87.515,87.399,7.61048319]
[1771167702011,10.65935993,87.515,87.363,174.51786167]
[1771167702012,10.2946,87.472,87.424,7.61048319]
[1771167702216,91.32,87.491,87.369,7.61048319]
[1771167702712,10.2947,87.472,87.409,7.56190485]
[1771167703820,10.2947,87.472,87.411,7.56185191]
[1771167705120,10.2947,87.472,87.414,7.55144642]
[1771167706410,10.2934,87.483,87.419,7.55144642]
[1771167706609,91.3,87.499,87.419,7.55144642]
[1771167707517,10.2933,87.484,87.421,7.54580484]
[1771167707920,10.2944,87.474,87.421,7.54580484]
[1771167708718,10.2954,87.466,87.421,7.54580484]
[1771167715921,10.2967,87.455,87.421,7.54580484]
[1771167718329,0.29868126,87.493,87.39,10.3042]
[1771167718527,0.28319147,87.485,87.39,10.3042]
[1771167719129,0.28336275,87.456,87.397,10.3034]
[1771167720138,0.28351108,87.445,87.388,10.3044]
[1771167720431,0.28351108,87.445,87.389,3.8187867]
[1771167721038,0.30046878,87.432,87.362,3.81039051]
[1771167721627,10.3038,87.395,87.34,3.81039628]
[1771167722135,10.3038,87.395,87.343,10.3098]
[1771167722334,10.3038,87.395,87.344,3.81039628]
[1771167722833,0.29486461,87.386,87.329,3.8134005]
[1771167723030,164.04,87.435,87.329,3.8134005]
[1771167723031,0.29486461,87.401,87.329,3.8134005]
[1771167723433,0.29486461,87.385,87.331,3.8134005]
[1771167724236,10.308,87.359,87.294,3.81340878]
[1771167724840,10.308,87.359,87.27,91.28]
[1771167724841,10.308,87.359,87.297,3.83829349]
[1771167725543,10.308,87.359,87.299,3.83829349]
[1771167725742,0.29392832,87.363,87.299,3.83829349]
[1771167726040,10.3067,87.37,87.304,3.83829349]
[1771167727941,10.3067,87.37,87.308,3.85583662]
[1771167729241,10.3071,87.367,87.308,3.85583662]
[1771167729638,0.2345796,87.369,87.308,3.85583662]
[1771167731542,0.2345796,87.369,87.31,10.3136]
[1771167731844,0.2345796,87.369,87.311,3.83595342]
[1771167733644,0.2345796,87.369,87.315,3.91429277]
[1771167734547,0.356003,87.367,87.297,3.91429277]
[1771167734850,0.356003,87.367,87.252,3.91429277]
[1771167735244,0.356003,87.356,87.293,3.91429277]
[1771167736749,0.45404886,87.354,87.293,3.91429277]
[1771167739753,0.47996496,87.352,87.293,3.91429277]
[1771167739948,0.47996496,87.352,87.228,3.91429277]
[1771167740151,0.47996496,87.352,87.23,3.91429277]
[1771167740348,0.47996496,87.352,87.231,91.36]
[1771167740548,0.47996496,87.352,87.232,3.91429277]
[1771167740855,10.77256606,87.317,87.265,3.91429277]
[1771167741055,0.45956606,87.316,87.265,3.91429277]
[1771167742960,10.73954898,87.312,87.265,3.91429277]
[1771167743559,0.42604898,87.307,87.249,3.91429277]
[1771167743759,0.42604898,87.345,87.249,3.91429277]
[1771167744756,10.313,87.317,87.26,3.91429277]
[1771167748965,10.313,87.317,87.262,3.91429277]
[1771167750565,0.61593738,87.31,87.262,3.91429277]
[1771167751868,10.3146,87.303,87.262,3.91429277]
[1771167752558,0.61593738,87.31,87.262,3.91429277]
[1771167753366,0.58934707,87.329,87.262,3.91429277]
[1771167753870,0.58934707,87.343,87.277,3.91429277]
[1771167754365,0.58934707,87.357,87.277,3.91429277]
[1771167754669,0.58934707,87.357,87.305,3.91429277]
[1771167755070,0.66649899,87.37,87.31,3.91429277]
[1771167755365,0.66649899,87.405,87.31,3.91429277]
[1771167755767,0.66649899,87.403,87.341,3.91429277]
[1771167756465,0.70011217,87.419,87.343,3.91429277]
[1771167757070,0.70011217,87.416,87.344,3.91429277]
[1771167757372,0.70011217,87.437,87.344,3.91429277]
[1771167757675,0.70011217,87.429,87.353,3.91429277]
[1771167758565,0.70011217,87.419,87.353,3.91429277]
[1771167759569,0.70011217,87.419,87.299,91.36]
[1771167759570,0.64743263,87.396,87.332,3.91429277]
[1771167760070,10.305,87.385,87.332,3.91429277]
[1771167761674,0.64743263,87.396,87.333,3.91429277]
[1771167763771,10.88907383,87.395,87.333,3.91429277]
[1771167763973,0.58527383,87.394,87.333,3.91429277]
[1771167764568,34.41,87.42,87.277,3.65969753]
[1771167764569,0.62519224,87.39,87.277,3.65969753]
[1771167764764,0.62519224,87.39,87.279,3.65969753]
[1771167765773,0.24999999,87.364,87.304,3.65969753]
[1771167766875,10.3045,87.388,87.308,3.65969753]
[1771167767577,10.3045,87.388,87.323,3.65969753]
[1771167767877,0.87133299,87.382,87.323,3.65969753]
[1771167768478,0.87133299,87.379,87.323,3.65969753]
[1771167769876,10.3057,87.378,87.323,3.65969753]
[1771167770179,0.87653119,87.377,87.323,3.65969753]
[1771167772883,0.87653119,87.377,87.323,13.97189753]
[1771167773184,0.87653119,87.377,87.324,3.65969753]
[1771167774586,0.87653119,87.377,87.325,10.3118]
[1771167775082,0.87653119,87.377,87.324,3.65969753]
[1771167775685,0.87653119,87.377,87.325,10.3119]
[1771167776484,0.87653119,87.377,87.324,3.65969753]
[1771167777584,0.87653119,87.377,87.275,91.36]
[1771167777585,10.3044,87.389,87.326,3.65969753]
[1771167777777,0.8821195,87.388,87.326,3.65969753]
[1771167778877,10.3047,87.387,87.326,3.65969753]
[1771167780689,11.22431754,87.387,87.326,3.65969753]
[1771167780884,34.41,87.401,87.326,3.65969753]
[1771167780885,0.91961754,87.381,87.326,3.65969753]
[1771167782587,0.81052016,87.368,87.312,3.65969753]
[1771167783178,10.3091,87.35,87.312,3.65969753]
[1771167783392,10.3091,87.35,87.298,3.65969753]
[1771167783584,0.81052016,87.35,87.298,3.65969753]
[1771167784585,0.87960662,87.329,87.261,3.65969753]
[1771167785288,11.19110662,87.329,87.263,3.65969753]
[1771167786586,10.3115,87.329,87.263,3.65969753]
[1771167786788,0.90494038,87.328,87.263,3.65969753]
[1771167786992,0.90494038,87.36,87.263,3.65969753]
[1771167787888,0.90494038,87.334,87.278,3.65969753]
[1771167788094,0.90494038,87.35,87.278,3.65969753]
[1771167788485,10.3096,87.345,87.289,3.65969753]
[1771167788692,0.94346583,87.367,87.289,3.65969753]
[1771167788888,10.3078,87.361,87.304,10.3143]
[1771167789089,0.94346583,87.383,87.305,3.65969753]
[1771167789283,0.94346583,87.413,87.305,3.65969753]
[1771167789490,0.94346583,87.413,87.279,14.12508003]
[1771167789491,0.94346583,87.413,87.327,3.65969753]
[1771167790397,10.303,87.401,87.341,3.65969753]
[1771167790793,0.91841075,87.43,87.341,3.65969753]
[1771167791196,0.91841075,87.446,87.366,3.65969753]
[1771167791592,10.2985,87.44,87.369,3.65969753]
[1771167791895,0.91841075,87.446,87.369,3.65969753]
[1771167792793,10.2996,87.43,87.371,3.65969753]
[1771167795100,0.90038289,87.426,87.371,3.65969753]
[1771167795694,10.3003,87.424,87.371,3.65969753]
[1771167796095,11.20068289,87.424,87.371,3.65969753]
[1771167796500,0.96406204,87.423,87.371,3.65969753]
[1771167797094,10.3008,87.42,87.371,3.65969753]
[1771167797499,0.96406204,87.419,87.355,3.7923529]
[1771167797690,0.96406204,87.413,87.338,3.7923529]
[1771167798195,0.96406204,87.413,87.29,3.7923529]
[1771167798394,0.96406204,87.41,87.29,3.7923529]
[1771167798897,0.93819917,87.387,87.32,3.7923529]
[1771167799092,0.93819917,87.387,87.279,3.7923529]
[1771167799500,0.93819917,87.387,87.303,10.3145]
[1771167799501,10.3063,87.374,87.303,10.3145]
[1771167799695,10.3063,87.374,87.304,3.7923529]
[1771167800293,10.3073,87.365,87.304,3.7923529]
[1771167802302,10.3085,87.354,87.304,3.7923529]
[1771167803398,0.93906255,87.392,87.304,3.7923529]
[1771167804203,0.93906255,87.392,87.258,34.41]
[1771167804204,0.93906255,87.392,87.315,3.7923529]
[1771167804704,0.93906255,87.392,87.317,3.7923529]
[1771167805400,11.24316255,87.392,87.328,3.7923529]
[1771167805701,10.3041,87.392,87.328,3.7923529]
[1771167806100,0.84842438,87.391,87.332,3.85145184]
[1771167806998,0.84801452,87.389,87.332,3.85145184]
[1771167807600,0.84801452,87.382,87.332,3.85145184]
[1771167808897,0.83472976,87.348,87.29,3.85145184]
[1771167809806,0.83472976,87.343,87.255,3.85145184]
[1771167810401,10.312,87.325,87.267,10.3187]
[1771167810603,10.312,87.325,87.255,3.85145184]
[1771167810909,14.17976929,87.375,87.255,3.85145184]
[1771167810910,0.69311921,87.324,87.255,3.85145184]
[1771167811808,10.3133,87.314,87.255,3.85145184]
[1771167813305,1.14495807,87.339,87.255,3.85145184]
[1771167813608,1.14495807,87.337,87.255,3.85145184]
[1771167815705,1.14495807,87.337,87.257,3.85145184]
[1771167816408,10.3133,87.314,87.257,3.85145184]
[1771167816803,1.21927755,87.341,87.257,3.85145184]
[1771167817004,1.21927755,87.341,87.268,3.85145184]
[1771167817808,10.312,87.325,87.268,3.85145184]
[1771167819104,10.3131,87.316,87.268,3.85145184]
[1771167819306,1.18208806,87.326,87.252,3.85145184]
[1771167820709,1.12163162,87.325,87.252,3.85145184]
[1771167821121,1.12163162,87.323,87.252,3.85145184]
[1771167821813,10.3159,87.292,87.252,3.85145184]
[1771167823315,10.3169,87.284,87.227,3.66193795]
[1771167824915,10.3179,87.275,87.227,3.66193795]
[1771167825812,1.07223568,87.276,87.208,3.66193795]
[1771167826707,10.32,87.257,87.208,3.66193795]
[1771167831112,10.319,87.266,87.208,3.66193795]
[1771167831310,1.07223568,87.276,87.208,3.66193795]
[1771167831913,1.07223568,87.276,87.211,3.66193795]
[1771167832222,0.93902368,87.293,87.211,3.66193795]
[1771167832517,0.93902368,87.293,87.224,3.66193795]
[1771167833721,10.3187,87.269,87.224,3.66193795]
[1771167835324,0.93902368,87.293,87.224,3.66193795]
[1771167836821,10.3161,87.29,87.231,3.66193795]
[1771167837122,0.77273856,87.322,87.231,3.66193795]
[1771167837720,10.315,87.3,87.24,3.66193795]
[1771167838023,0.77273856,87.299,87.24,3.66193795]
[1771167838820,0.79696286,87.296,87.225,3.66193795]
[1771167839721,10.3177,87.277,87.225,3.66193795]
[1771167840118,0.79696286,87.296,87.225,3.66193795]
[1771167840426,11.11236286,87.296,87.23,3.66193795]
[1771167841022,10.3143,87.305,87.244,3.66193795]
[1771167842724,10.3143,87.305,87.246,3.66193795]
[1771167843323,10.3156,87.295,87.246,3.66193795]
[1771167843523,0.65352231,87.294,87.246,3.66193795]
[1771167843922,10.3178,87.276,87.218,3.66193795]
[1771167844428,0.65352231,87.294,87.218,3.66193795]
[1771167844630,10.3148,87.301,87.193,91.38]
[1771167844928,10.3148,87.301,87.193,125.75]
[1771167845131,10.3148,87.301,87.238,3.66193795]
[1771167845429,10.3157,87.294,87.245,3.66193795]
[1771167846921,0.63625223,87.311,87.195,20.6545]
[1771167846922,10.3146,87.303,87.251,3.66193795]
[1771167847827,10.3146,87.303,87.252,10.3205]
[1771167848028,10.3146,87.303,87.252,13.98243795]
[1771167848830,10.3157,87.293,87.252,3.66193795]
[1771167849532,0.58788074,87.302,87.252,3.66193795]
[1771167850736,0.60474986,87.3,87.252,3.66193795]
[1771167851428,10.3137,87.311,87.252,3.66193795]
[1771167851636,0.60474986,87.314,87.252,3.66193795]
[1771167852033,0.60474986,87.312,87.255,13.98203795]
[1771167852826,0.60474986,87.312,87.258,10.3198]
[1771167853930,0.60474986,87.312,87.261,10.3195]
[1771167854136,10.3124,87.322,87.262,3.94669349]
[1771167854636,10.3127,87.32,87.265,14.26569349]
[1771167854838,0.6056526,87.336,87.266,3.94669349]
[1771167855736,0.6056526,87.351,87.284,3.94669349]
[1771167856542,91.38,87.372,87.239,20.644]
[1771167856543,0.6056526,87.341,87.253,3.94669349]
[1771167857631,0.57966063,87.328,87.265,3.94669349]
[1771167858637,0.57966063,87.328,87.218,91.38]
[1771167858638,0.57966063,87.328,87.268,3.94669349]
[1771167860243,0.57966063,87.328,87.27,3.94669349]
[1771167861347,0.57966063,87.328,87.274,3.94669349]
[1771167862342,10.3098,87.344,87.277,3.94669349]
[1771167863238,10.3106,87.337,87.282,3.94669349]
[1771167864335,10.3118,87.326,87.282,3.94669349]
[1771167866536,10.3127,87.319,87.273,10.318]
[1771167866743,0.52967533,87.333,87.273,10.318]
[1771167867042,0.52967533,87.333,87.267,3.94669349]
[1771167867846,10.60838174,87.361,87.255,10.3201]
[1771167867847,0.49538057,87.315,87.255,10.3201]
[1771167868547,0.48889127,87.303,87.246,3.94669349]
[1771167869347,0.48889127,87.301,87.236,10.3224]
[1771167869747,0.48889127,87.301,87.236,14.26909349]
[1771167870043,10.3155,87.296,87.242,3.94669349]
[1771167873147,10.91748988,87.296,87.242,3.94669349]
[1771167873951,10.316,87.291,87.242,3.94669349]
[1771167874447,0.60198988,87.295,87.242,3.94669349]
[1771167875450,0.59453305,87.283,87.227,3.94669349]
[1771167876150,34.37,87.314,87.227,3.94669349]
[1771167876151,0.59453305,87.28,87.227,3.94669349]
[1771167876353,0.59453305,87.313,87.227,3.94669349]
[1771167876551,10.3173,87.28,87.227,3.94669349]
[1771167877852,10.3162,87.29,87.229,3.94669349]
[1771167878057,0.59453305,87.295,87.229,3.94669349]
[1771167879053,10.317,87.282,87.229,3.94669349]
[1771167880144,10.3159,87.292,87.229,3.94669349]
[1771167881750,10.3159,87.292,87.233,3.94669349]
[1771167881954,0.52053591,87.284,87.233,3.94669349]
[1771167882854,10.3168,87.285,87.233,3.94669349]
[1771167883754,10.3168,87.285,87.239,3.73061179]
[1771167885449,10.3177,87.277,87.239,3.73061179]
[1771167885649,0.51708194,87.288,87.239,3.73061179]
[1771167886656,10.3166,87.286,87.239,3.73061179]
[1771167887755,0.44087481,87.285,87.239,3.73061179]
[1771167889655,0.44087481,87.285,87.242,14.06254694]
[1771167889852,10.75562907,87.299,87.243,3.74084694]
[1771167890053,44.97838174,87.317,87.243,3.74084694]
[1771167890054,0.44052907,87.298,87.243,3.74084694]
[1771167890660,0.44052907,87.32,87.261,3.74084694]
[1771167890958,0.44052907,87.32,87.271,3.73946015]
[1771167891552,10.3116,87.328,87.271,3.73946015]
[1771167893363,10.3104,87.338,87.274,3.73061179]
[1771167893960,10.78493832,87.338,87.274,3.73061179]
[1771167894758,10.78493832,87.338,87.284,3.73061179]
[1771167895451,10.311,87.334,87.284,3.73061179]
[1771167895653,0.46222575,87.333,87.284,3.73061179]
[1771167896867,10.3111,87.332,87.284,3.73061179]
[1771167897767,0.38883015,87.34,87.286,3.7666964]
[1771167897965,0.38883015,87.367,87.286,3.7666964]
[1771167898362,10.3078,87.361,87.307,3.7666964]
[1771167898561,0.38883015,87.367,87.307,3.7666964]
[1771167899757,10.3071,87.366,87.31,3.77416989]
[1771167900158,0.37388316,87.365,87.295,3.77416989]
[1771167900359,0.37388316,87.339,87.239,3.77416989]
[1771167901164,10.3124,87.322,87.261,3.80246047]
[1771167901465,0.37388316,87.339,87.261,3.80246047]
[1771167901664,10.3112,87.332,87.275,3.80246047]
[1771167901969,0.317302,87.362,87.275,3.80246047]
[1771167902770,10.3098,87.343,87.287,3.81267768]
[1771167902966,0.29686758,87.342,87.234,91.38]
[1771167903174,0.29686758,87.342,87.235,3.81267768]
[1771167904882,0.28670517,87.333,87.267,3.81775889]
[1771167905280,0.28670517,87.32,87.267,3.81775889]
[1771167906084,10.3129,87.317,87.267,3.81775889]
[1771167906485,0.28670517,87.32,87.267,3.81775889]
[1771167909086,0.28670517,87.32,87.25,3.7760052]
[1771167909487,0.37021254,87.316,87.25,3.7760052]
[1771167909677,0.37021254,87.316,87.216,3.7760052]
[1771167910077,0.37021254,87.296,87.216,3.7760052]
[1771167910392,0.37021254,87.321,87.224,3.7760052]
[1771167910590,0.37021254,87.321,87.257,3.78049728]
[1771167911890,10.3126,87.32,87.26,3.78049728]
[1771167912993,10.75997595,87.32,87.26,3.78049728]
[1771167913487,0.44624742,87.314,87.26,3.78049728]
[1771167915188,10.3136,87.311,87.26,3.78049728]
[1771167915387,0.44622641,87.311,87.26,3.78049728]
[1771167915890,10.76202641,87.293,87.239,3.91017478]
[1771167920597,10.76202641,87.293,87.24,10.322]
[1771167920797,10.76202641,87.293,87.241,3.91017478]
[1771167920999,0.44622641,87.293,87.251,10.3206]
[1771167921297,0.43979964,87.321,87.252,3.91017478]
[1771167921497,0.43979964,87.31,87.252,3.91017478]
[1771167922793,0.43979964,87.31,87.22,14.12508003]
[1771167922794,0.4607924,87.296,87.217,3.91017478]
[1771167923598,0.4607924,87.296,87.206,14.12508003]
[1771167923599,10.3162,87.29,87.237,3.91017478]
[1771167925500,10.3162,87.29,87.194,112.56762005]
[1771167925501,10.3162,87.29,87.24,3.91017478]
[1771167929203,34.37,87.32,87.24,3.91017478]
[1771167929204,0.43638319,87.287,87.24,3.91017478]
[1771167929606,0.43638319,87.287,87.223,3.91017478]
[1771167930698,10.3187,87.268,87.223,3.91017478]
[1771167934509,10.3196,87.261,87.223,3.91017478]
[1771167934702,0.46309938,87.268,87.223,3.91017478]
[1771167934904,0.46683595,87.301,87.223,3.91017478]
[1771167935708,10.3175,87.279,87.227,3.91017478]
[1771167936410,10.78513595,87.272,87.227,3.91017478]
[1771167936713,0.46683595,87.272,87.227,3.91017478]
[1771167936906,10.3192,87.264,87.227,3.91017478]
[1771167937314,0.48769013,87.286,87.227,3.91017478]
[1771167937714,10.3173,87.28,87.23,3.91017478]
[1771167938815,10.3173,87.28,87.232,3.91017478]
[1771167942214,10.3173,87.28,87.236,3.91017478]
[1771167946217,104.96,87.303,87.239,3.84830862]
[1771167946218,0.37701777,87.299,87.239,3.84830862]
[1771167946517,0.37701777,87.318,87.239,3.84830862]
[1771167947719,10.3151,87.299,87.241,3.84830862]
[1771167948122,10.68827896,87.299,87.241,3.84830862]
[1771167948820,44.97838174,87.33,87.246,3.84830862]
[1771167948821,10.3141,87.307,87.246,3.84830862]
[1771167949117,0.28538627,87.328,87.246,3.84830862]
[1771167950022,10.3131,87.316,87.263,3.84830862]
[1771167950621,10.314,87.308,87.263,3.84830862]
[1771167951018,0.32445883,87.307,87.263,3.84830862]
[1771167951823,10.3147,87.302,87.263,3.84830862]
[1771167952332,10.63915883,87.302,87.263,3.84830862]
[1771167953926,0.29631306,87.296,87.236,3.84830862]
[1771167954625,10.3155,87.295,87.236,3.84830862]
[1771167955024,0.29631306,87.296,87.236,3.84830862]
[1771167955621,10.3164,87.288,87.238,14.17050862]
[1771167955822,0.29631306,87.296,87.239,3.84830862]
[1771167956122,0.32160348,87.295,87.241,3.84830862]
[1771167956522,0.32160348,87.32,87.241,3.84830862]
[1771167957730,10.3144,87.305,87.25,10.3207]
[1771167957931,10.3144,87.305,87.251,3.84830862]
[1771167959234,0.38964021,87.302,87.251,3.84830862]
[1771167960733,10.71576074,87.295,87.251,3.84830862]
[1771167961134,0.40026074,87.294,87.251,3.84830862]
[1771167961435,10.3157,87.293,87.251,3.84830862]
[1771167961931,44.97838174,87.32,87.254,3.84830862]
[1771167962136,0.40026074,87.326,87.254,3.84830862]
[1771167962333,0.40026074,87.34,87.266,3.84830862]
[1771167962542,435.75311433,87.355,87.3,3.84830862]
[1771167962833,0.36151618,87.354,87.3,3.84830862]
[1771167963333,10.3087,87.353,87.3,3.84830862]
[1771167963534,0.36151618,87.353,87.3,3.84830862]
[1771167964735,10.3097,87.345,87.3,3.84830862]
[1771167965530,0.36151618,87.353,87.251,14.12508003]
[1771167965737,0.36151618,87.353,87.252,91.4]
[1771167966835,14.09254748,87.349,87.289,10.3162]
[1771167967037,3.78344748,87.348,87.252,91.4]
[1771167967744,3.78344748,87.348,87.29,3.84830862]
[1771167969546,3.78344748,87.348,87.295,3.84830862]
[1771167970745,435.35285359,87.355,87.297,3.84830862]
[1771167971743,435.35285359,87.355,87.299,3.84830862]
[1771167972546,3.78344748,87.354,87.299,3.84830862]
[1771167972944,3.78344748,87.354,87.289,10.3162]
[1771167973141,10.3087,87.353,87.29,3.94225254]
[1771167973347,3.64871889,87.352,87.29,3.94225254]
[1771167974247,3.64871889,87.352,87.301,10.3148]
[1771167975948,3.64871889,87.347,87.29,14.25825254]
[1771167976149,3.64871889,87.347,87.276,3.94225254]
[1771167976453,3.64871889,87.345,87.276,3.94225254]
[1771167977153,3.64871889,87.337,87.28,10.3172]
[1771167977451,3.64871889,87.337,87.23,34.37]
[1771167977452,175.64,87.346,87.281,3.94225254]
[1771167977652,175.64,87.346,87.303,3.94225254]
[1771167977850,3.64871889,87.367,87.303,3.94225254]
[1771167978558,3.64871889,87.365,87.306,3.94225254]
[1771167979848,3.64871889,87.365,87.311,3.94225254]
[1771167980853,13.95421889,87.38,87.325,3.94225254]
[1771167981054,3.64871889,87.379,87.277,3.94225254]
[1771167982756,3.64871889,87.377,87.316,10.3129]
[1771167983452,3.64871889,87.377,87.316,14.25515254]
[1771167983652,3.64871889,87.375,87.324,10.312]
[1771167989853,3.64871889,87.375,87.324,14.25425254]
[1771167991653,3.64871889,87.375,87.325,3.94225254]
[1771167991654,182.56,87.374,87.325,3.94225254]
[1771167992055,182.56,87.374,87.326,10.3118]
[1771167992256,182.56,87.374,87.327,3.94225254]
[1771167993457,183.68,87.373,87.327,3.94225254]
[1771167993858,183.68,87.373,87.33,3.94225254]
[1771167994955,183.68,87.373,87.337,3.94225254]
[1771167995356,3.64871889,87.375,87.337,3.94225254]
[1771167995752,3.64871889,87.375,87.339,10.3102]
[1771167998562,3.64871889,87.375,87.339,14.25245254]
[1771167999962,184.24,87.382,87.293,20.6315]
[1771167999963,184.24,87.382,87.341,10.31]
[1771168000364,184.24,87.382,87.342,3.94225254]
[1771168004766,187.82770561,87.382,87.342,3.94225254]
[1771168004962,3.58770561,87.414,87.344,3.61059989]
[1771168005361,3.58770561,87.412,87.344,3.61059989]
[1771168005570,3.58770561,87.402,87.346,3.61059989]
[1771168006769,3.58770561,87.399,87.346,3.61059989]
[1771168007470,3.58770561,87.397,87.346,3.61059989]
[1771168007971,3.58770561,87.391,87.346,3.61059989]
[1771168009070,3.58770561,87.386,87.335,10.3107]
[1771168009471,3.58770561,87.386,87.333,3.61059989]
[1771168009668,3.58770561,87.375,87.321,3.61059989]
[1771168010873,3.58770561,87.365,87.321,3.61059989]
[1771168011576,152.26,87.375,87.325,3.61059989]
[1771168011971,3.58770561,87.387,87.325,3.61059989]
[1771168012170,186.36,87.395,87.287,20.6328]
[1771168012171,3.58770561,87.377,87.334,3.61059989]
[1771168012872,3.58770561,87.377,87.288,3.61059989]
[1771168013767,10.3062,87.374,87.317,3.61059989]
[1771168014675,10.3062,87.374,87.318,10.3127]
[1771168014974,10.3062,87.374,87.319,3.61059989]
[1771168015573,10.3073,87.365,87.319,3.61059989]
[1771168016874,10.3078,87.36,87.319,3.61059989]
[1771168017469,3.58770561,87.364,87.319,3.61059989]
[1771168019169,3.58770561,87.364,87.29,14.12508003]
[1771168019170,3.58770561,87.377,87.322,3.61059989]
[1771168019372,3.58770561,87.39,87.322,3.61059989]
[1771168020873,3.58770561,87.39,87.334,3.61059989]
[1771168021777,10.3055,87.38,87.335,10.3108]
[1771168023580,10.3055,87.38,87.336,3.61059989]
[1771168024574,10.3058,87.378,87.336,3.61059989]
[1771168024779,3.58770561,87.377,87.327,10.3117]
[1771168024976,3.58770561,87.377,87.287,3.61059989]
[1771168025172,10.3067,87.37,87.287,3.61059989]
[1771168025368,10.3067,87.37,87.312,3.61059989]
[1771168025676,13.89440561,87.37,87.312,3.61059989]
[1771168026781,3.58770561,87.369,87.322,3.61059989]
[1771168027479,3.58770561,87.369,87.324,10.312]
[1771168028081,3.58770561,87.369,87.324,13.92259989]
[1771168028275,3.58770561,87.369,87.331,10.3112]
[1771168028481,3.58770561,87.369,87.332,3.61059989]
[1771168029280,3.58770561,87.369,87.32,10.3125]
[1771168030677,3.58770561,87.359,87.319,3.61059989]
[1771168031779,10.3081,87.358,87.319,3.61059989]
[1771168032676,13.89580561,87.358,87.319,3.61059989]
[1771168034477,3.95250305,87.357,87.319,3.61059989]
[1771168035489,3.95250305,87.357,87.31,10.3136]
[1771168036083,3.95250305,87.357,87.31,14.17155884]
[1771168037692,10.3084,87.356,87.311,3.85795884]
[1771168039787,3.95250305,87.357,87.311,3.85795884]
[1771168043592,3.95250305,87.354,87.311,3.85795884]
[1771168045194,3.95250305,87.354,87.315,3.85795884]
[1771168052990,3.95250305,87.393,87.323,3.85795884]
[1771168053189,3.95250305,87.393,87.326,3.85795884]
[1771168054597,3.95250305,87.416,87.326,3.85795884]
[1771168054800,14.25560305,87.4,87.349,3.85795884]
[1771168055902,14.25560305,87.4,87.351,3.85795884]
[1771168057102,3.95250305,87.399,87.351,3.85795884]
[1771168063103,3.95250305,87.397,87.351,3.85795884]
[1771168063508,3.95250305,87.397,87.31,20.6274]
[1771168063509,3.95250305,87.397,87.317,3.86880098]
[1771168063710,10.3047,87.387,87.317,3.86880098]
[1771168063906,3.95250305,87.397,87.348,3.86880098]
[1771168065708,14.19217547,87.396,87.351,3.86880098]
[1771168069309,3.88857547,87.395,87.351,3.86880098]
[1771168069706,10.3038,87.394,87.351,3.86880098]
[1771168071110,10.3038,87.394,87.352,10.3087]
[1771168071312,10.3029,87.402,87.353,3.86880098]
[1771168072112,10.3009,87.419,87.367,10.3069]
[1771168072313,246.54142139,87.424,87.352,3.86880098]
[1771168072514,10.6916414,87.492,87.364,160.3367]
[1771168072714,91.34,87.491,87.418,3.86880098]
[1771168072910,91.34,87.491,87.384,3.86880098]
[1771168073113,10.2973,87.45,87.386,3.86880098]
[1771168073512,34.37,87.46,87.386,3.86880098]
[1771168073719,182.32,87.459,87.339,3.86880098]
[1771168074014,34.37,87.458,87.364,3.86880098]
[1771168074413,0.31216846,87.457,87.364,3.86880098]
[1771168074619,34.37,87.458,87.33,91.34]
[1771168074620,0.32442364,87.444,87.37,3.86880098]
[1771168075711,10.2983,87.441,87.384,3.86880098]
[1771168075915,10.62272364,87.441,87.384,3.86880098]
[1771168076214,0.32442364,87.44,87.384,3.86880098]
[1771168077815,0.41713302,87.438,87.384,3.86880098]
[1771168078621,0.41713302,87.434,87.384,3.86880098]
[1771168081016,0.40286005,87.428,87.372,10.3063]
[1771168081322,0.40286005,87.428,87.37,3.86880098]
[1771168081919,10.70316005,87.424,87.374,3.86880098]
[1771168082120,10.6916414,87.481,87.336,160.3885]
[1771168082314,0.40286005,87.487,87.379,3.86880098]
[1771168082515,0.40286005,87.487,87.426,3.86880098]
[1771168083018,0.38431258,87.474,87.426,3.86880098]
[1771168083924,444.10727476,87.488,87.426,3.86880098]
[1771168084926,444.10727476,87.488,87.437,3.86880098]
[1771168086520,444.78301904,87.488,87.437,3.86880098]
[1771168088929,10.2918,87.497,87.437,3.86880098]
[1771168089226,0.63481668,87.493,87.437,3.86880098]
[1771168090722,10.99490624,87.492,87.437,3.86880098]
[1771168090926,0.70260624,87.491,87.437,3.86880098]
[1771168094926,0.73902988,87.518,87.449,3.88316151]
[1771168096324,0.73902988,87.531,87.449,3.88316151]